[Event "Early-Titled-Tuesday-Blitz-June-18-2024"]
[Site "Chess.com"]
[Date "2024.06.18"]
[Round "3"]
[White "Chaubunagungamaug1"]
[Black "jguerramzllo"]
[Result "1/2-1/2"]
[WhiteElo "2476"]
[BlackElo "2664"]
[TimeControl "180+1"]
[EndTime "8:31:16 PDT"]
[Termination "Game drawn by repetition"]

1. d4 {[%clk 0:03:00.9]} 1... Nf6 {[%clk 0:02:56.1]} 2. c4 {[%clk 0:03:00.6]}
2... g6 {[%clk 0:02:56.2]} 3. Nc3 {[%clk 0:02:59.4]} 3... Bg7 {[%clk 0:02:56.8]}
4. Nf3 {[%clk 0:02:59.5]} 4... O-O {[%clk 0:02:57]} 5. Bg5 {[%clk 0:02:59.7]}
5... c6 {[%clk 0:02:51.7]} 6. e3 {[%clk 0:02:54.9]} 6... d6 {[%clk 0:02:49.5]}
7. Be2 {[%clk 0:02:53.3]} 7... Qc7 {[%clk 0:02:48.8]} 8. O-O {[%clk 0:02:52.9]}
8... a5 {[%clk 0:02:46.1]} 9. Qc2 {[%clk 0:02:52.7]} 9... Na6 {[%clk 0:02:44.6]}
10. a3 {[%clk 0:02:51.8]} 10... Bf5 {[%clk 0:02:34.9]} 11. Qd2 {[%clk
0:02:30.2]} 11... h6 {[%clk 0:02:22.5]} 12. Bxf6 {[%clk 0:02:26.7]} 12... Bxf6
{[%clk 0:02:21.4]} 13. e4 {[%clk 0:02:25.1]} 13... Bg4 {[%clk 0:02:21.7]} 14.
Qxh6 {[%clk 0:01:48.9]} 14... Bxf3 {[%clk 0:02:21.6]} 15. Bxf3 {[%clk
0:01:49.6]} 15... Bxd4 {[%clk 0:02:21.8]} 16. h4 {[%clk 0:01:49.7]} 16... Bg7
{[%clk 0:02:15.2]} 17. Qe3 {[%clk 0:01:46]} 17... e5 {[%clk 0:01:59.6]} 18. h5
{[%clk 0:01:45.5]} 18... Nc5 {[%clk 0:01:59.7]} 19. Bg4 {[%clk 0:01:34.8]} 19...
Nb3 {[%clk 0:01:57.9]} 20. hxg6 {[%clk 0:01:22]} 20... Nxa1 {[%clk 0:01:53.2]}
21. Qh3 {[%clk 0:00:59.1]} 21... fxg6 {[%clk 0:01:42.7]} 22. Be6+ {[%clk
0:00:59.7]} 22... Rf7 {[%clk 0:01:43.1]} 23. Rxa1 {[%clk 0:00:59]} 23... Re8
{[%clk 0:01:37.5]} 24. b4 {[%clk 0:00:55.9]} 24... Qe7 {[%clk 0:01:32.4]} 25.
Bxf7+ {[%clk 0:00:54.7]} 25... Qxf7 {[%clk 0:01:32.7]} 26. Qd3 {[%clk
0:00:50.4]} 26... Rf8 {[%clk 0:01:27.1]} 27. Ra2 {[%clk 0:00:50.8]} 27... axb4
{[%clk 0:01:24.2]} 28. axb4 {[%clk 0:00:51.7]} 28... b5 {[%clk 0:01:24.2]} 29.
cxb5 {[%clk 0:00:48.6]} 29... cxb5 {[%clk 0:01:23]} 30. Qxb5 {[%clk 0:00:48.3]}
30... Qc7 {[%clk 0:01:09.4]} 31. Qd5+ {[%clk 0:00:42.5]} 31... Kh7 {[%clk
0:01:08]} 32. Qd3 {[%clk 0:00:40.2]} 32... Qf7 {[%clk 0:00:59]} 33. Rb2 {[%clk
0:00:37.2]} 33... Bh6 {[%clk 0:00:41.1]} 34. b5 {[%clk 0:00:29]} 34... Bc1
{[%clk 0:00:40.8]} 35. Rc2 {[%clk 0:00:29.5]} 35... Ba3 {[%clk 0:00:39.8]} 36.
Na4 {[%clk 0:00:23.6]} 36... Bc5 {[%clk 0:00:28.5]} 37. Nxc5 {[%clk 0:00:22.7]}
37... dxc5 {[%clk 0:00:29.4]} 38. b6 {[%clk 0:00:21.5]} 38... Qb7 {[%clk
0:00:17.7]} 39. Qb5 {[%clk 0:00:21]} 39... Rf6 {[%clk 0:00:15.7]} 40. Rb2 {[%clk
0:00:19.2]} 40... Rc6 {[%clk 0:00:14.7]} 41. Qxc6 {[%clk 0:00:18.5]} 41... Qxc6
{[%clk 0:00:14.8]} 42. b7 {[%clk 0:00:19.4]} 42... Qd6 {[%clk 0:00:13.6]} 43. g3
{[%clk 0:00:14.8]} 43... Qb8 {[%clk 0:00:12.8]} 44. f4 {[%clk 0:00:13.1]} 44...
c4 {[%clk 0:00:11.1]} 45. fxe5 {[%clk 0:00:12.6]} 45... c3 {[%clk 0:00:10.3]}
46. Rc2 {[%clk 0:00:12.2]} 46... Qxb7 {[%clk 0:00:08.8]} 47. Rxc3 {[%clk
0:00:12.1]} 47... Qxe4 {[%clk 0:00:09.1]} 48. Kf2 {[%clk 0:00:11.3]} 48... Qxe5
{[%clk 0:00:08.4]} 49. Re3 {[%clk 0:00:11.7]} 49... Qd4 {[%clk 0:00:07.9]} 50.
Kf3 {[%clk 0:00:11.3]} 50... Kh6 {[%clk 0:00:07.7]} 51. Re4 {[%clk 0:00:11.6]}
51... Qd3+ {[%clk 0:00:07.9]} 52. Re3 {[%clk 0:00:12]} 52... Qf1+ {[%clk
0:00:07.2]} 53. Ke4 {[%clk 0:00:09.6]} 53... Qf5+ {[%clk 0:00:06.9]} 54. Kd4
{[%clk 0:00:10]} 54... g5 {[%clk 0:00:04.4]} 55. Re4 {[%clk 0:00:09.1]} 55... g4
{[%clk 0:00:02.9]} 56. Rf4 {[%clk 0:00:08.7]} 56... Qg5 {[%clk 0:00:02.3]} 57.
Ke4 {[%clk 0:00:08.5]} 57... Kg6 {[%clk 0:00:02.8]} 58. Ke3 {[%clk 0:00:08.5]}
58... Qe7+ {[%clk 0:00:03]} 59. Kf2 {[%clk 0:00:08.5]} 59... Kg5 {[%clk
0:00:03.7]} 60. Kg2 {[%clk 0:00:08.6]} 60... Qc5 {[%clk 0:00:03.8]} 61. Rf2
{[%clk 0:00:07.2]} 61... Qc6+ {[%clk 0:00:03.4]} 62. Kh2 {[%clk 0:00:06.9]}
62... Qe4 {[%clk 0:00:03.3]} 63. Rf4 {[%clk 0:00:06.8]} 63... Qe2+ {[%clk
0:00:01.9]} 64. Kg1 {[%clk 0:00:07.4]} 64... Qe3+ {[%clk 0:00:02.3]} 65. Kg2
{[%clk 0:00:07.7]} 65... Qe2+ {[%clk 0:00:02.6]} 66. Rf2 {[%clk 0:00:08]} 66...
Qe4+ {[%clk 0:00:03.2]} 67. Kg1 {[%clk 0:00:07.9]} 67... Qe3 {[%clk 0:00:03.5]}
68. Kg2 {[%clk 0:00:07.7]} 68... Qd4 {[%clk 0:00:04.2]} 69. Rf4 {[%clk
0:00:08.1]} 69... Qd5+ {[%clk 0:00:04.5]} 70. Kg1 {[%clk 0:00:08]} 70... Qa2
{[%clk 0:00:05]} 71. Rf2 {[%clk 0:00:08.2]} 71... Qd5 {[%clk 0:00:05.3]} 72. Rf4
{[%clk 0:00:07.6]} 72... Qc5+ {[%clk 0:00:05.8]} 73. Rf2 {[%clk 0:00:07.8]}
73... Qc6 {[%clk 0:00:06.3]} 74. Rf4 {[%clk 0:00:06.8]} 74... Qb6+ {[%clk
0:00:06.8]} 75. Rf2 {[%clk 0:00:07.1]} 75... Qb7 {[%clk 0:00:07.3]} 76. Rf4
{[%clk 0:00:05.5]} 76... Qa7+ {[%clk 0:00:08.2]} 77. Rf2 {[%clk 0:00:05.9]}
77... Qa8 {[%clk 0:00:08.7]} 78. Rf4 {[%clk 0:00:06.3]} 78... Qd5 {[%clk
0:00:08.5]} 79. Rf2 {[%clk 0:00:06.5]} 79... Qd1+ {[%clk 0:00:08.3]} 80. Kg2
{[%clk 0:00:06.1]} 80... Qd4 {[%clk 0:00:08.5]} 81. Rf4 {[%clk 0:00:06.2]} 81...
Qe3 {[%clk 0:00:09]} 82. Rf2 {[%clk 0:00:06.7]} 82... Qe4+ {[%clk 0:00:09.2]}
83. Kg1 {[%clk 0:00:06.7]} 83... Qd4 {[%clk 0:00:09.4]} 84. Kg2 {[%clk
0:00:06.6]} 84... Qe4+ {[%clk 0:00:09.6]} 1/2-1/2

[Event "Early-Titled-Tuesday-Blitz-June-18-2024"]
[Site "Chess.com"]
[Date "2024.06.18"]
[Round "3"]
[White "Sic_Transit_GM"]
[Black "VirtualCoach"]
[Result "1/2-1/2"]
[WhiteElo "2585"]
[BlackElo "2359"]
[TimeControl "180+1"]
[EndTime "8:31:20 PDT"]
[Termination "Game drawn by repetition"]

1. Nf3 {[%clk 0:03:00.9]} 1... c5 {[%clk 0:02:58.9]} 2. c4 {[%clk 0:03:00.5]}
2... Nc6 {[%clk 0:02:57.9]} 3. Nc3 {[%clk 0:02:59.9]} 3... Nf6 {[%clk
0:02:56.4]} 4. d3 {[%clk 0:02:58.3]} 4... e6 {[%clk 0:02:55]} 5. g3 {[%clk
0:02:58.6]} 5... b6 {[%clk 0:02:53]} 6. Bg2 {[%clk 0:02:58.4]} 6... Bb7 {[%clk
0:02:53.7]} 7. O-O {[%clk 0:02:57.8]} 7... Nd4 {[%clk 0:02:52.1]} 8. b3 {[%clk
0:02:53.6]} 8... Nxf3+ {[%clk 0:02:50.6]} 9. exf3 {[%clk 0:02:51.5]} 9... Be7
{[%clk 0:02:50.5]} 10. Bb2 {[%clk 0:02:49.9]} 10... O-O {[%clk 0:02:51]} 11. d4
{[%clk 0:02:47.4]} 11... cxd4 {[%clk 0:02:49]} 12. Qxd4 {[%clk 0:02:48.3]} 12...
Bc5 {[%clk 0:02:49.1]} 13. Qd2 {[%clk 0:02:47.5]} 13... a6 {[%clk 0:02:47.4]}
14. Rad1 {[%clk 0:02:45.4]} 14... Bc6 {[%clk 0:02:35.7]} 15. Ne4 {[%clk
0:02:42]} 15... Be7 {[%clk 0:02:31.1]} 16. Rfe1 {[%clk 0:02:20.3]} 16... Nxe4
{[%clk 0:02:28.7]} 17. fxe4 {[%clk 0:02:20.2]} 17... Qb8 {[%clk 0:02:29]} 18. e5
{[%clk 0:02:06.8]} 18... Bxg2 {[%clk 0:02:24.2]} 19. Kxg2 {[%clk 0:02:07.7]}
19... Rd8 {[%clk 0:02:24.2]} 20. Bd4 {[%clk 0:01:50.1]} 20... Qb7+ {[%clk
0:02:23]} 21. f3 {[%clk 0:01:49.6]} 21... d6 {[%clk 0:02:22.1]} 22. Qe3 {[%clk
0:01:47.9]} 22... Rab8 {[%clk 0:02:15]} 23. exd6 {[%clk 0:01:34.8]} 23... Bxd6
{[%clk 0:02:12.3]} 24. Bc3 {[%clk 0:01:28.3]} 24... Bf8 {[%clk 0:02:07.1]} 25.
Rd2 {[%clk 0:01:17]} 25... Rxd2+ {[%clk 0:02:06.4]} 26. Qxd2 {[%clk 0:01:17.9]}
26... b5 {[%clk 0:02:03.4]} 27. cxb5 {[%clk 0:01:08.7]} 27... axb5 {[%clk
0:02:02.5]} 28. Rd1 {[%clk 0:01:08.6]} 28... Ra8 {[%clk 0:02:02]} 29. Qb2 {[%clk
0:00:19]} 29... Qa6 {[%clk 0:01:59.4]} 30. Rd2 {[%clk 0:00:18.9]} 30... Rc8
{[%clk 0:01:51.7]} 31. Be5 {[%clk 0:00:17.1]} 31... f6 {[%clk 0:01:41.6]} 32.
Bf4 {[%clk 0:00:15.3]} 32... Qb6 {[%clk 0:01:39.6]} 33. Re2 {[%clk 0:00:13.8]}
33... e5 {[%clk 0:01:38]} 34. Be3 {[%clk 0:00:14.4]} 34... Qc6 {[%clk
0:01:37.6]} 35. Rd2 {[%clk 0:00:12.9]} 35... Kh8 {[%clk 0:01:35.6]} 36. a3
{[%clk 0:00:11]} 36... g6 {[%clk 0:01:23.5]} 37. Kf2 {[%clk 0:00:09.7]} 37...
Qc3 {[%clk 0:01:19]} 38. Qa2 {[%clk 0:00:06.3]} 38... Ra8 {[%clk 0:01:08.7]} 39.
Qc2 {[%clk 0:00:03.5]} 39... Qxc2 {[%clk 0:01:05.3]} 40. Rxc2 {[%clk 0:00:04.4]}
40... Rxa3 {[%clk 0:01:03.1]} 41. Rc3 {[%clk 0:00:04.6]} 41... Ra2+ {[%clk
0:01:02.8]} 42. Kg1 {[%clk 0:00:04.2]} 42... Bb4 {[%clk 0:01:02]} 43. Rd3 {[%clk
0:00:04.4]} 43... Re2 {[%clk 0:00:59.5]} 44. Bf2 {[%clk 0:00:03.5]} 44... Kg7
{[%clk 0:00:56.1]} 45. Rd7+ {[%clk 0:00:02.3]} 45... Kh6 {[%clk 0:00:53]} 46.
Rd5 {[%clk 0:00:03]} 46... Rb2 {[%clk 0:00:46.1]} 47. Rxb5 {[%clk 0:00:02.8]}
47... Rxb3 {[%clk 0:00:44.6]} 48. Kg2 {[%clk 0:00:03.3]} 48... Rb2 {[%clk
0:00:43.2]} 49. Rb7 {[%clk 0:00:03.3]} 49... Bc3 {[%clk 0:00:39.4]} 50. Rxb2
{[%clk 0:00:02.3]} 50... Bxb2 {[%clk 0:00:39]} 51. Be3+ {[%clk 0:00:03.2]} 51...
g5 {[%clk 0:00:38.9]} 52. f4 {[%clk 0:00:02.8]} 52... Kg6 {[%clk 0:00:38.6]} 53.
fxg5 {[%clk 0:00:02.5]} 53... fxg5 {[%clk 0:00:39.5]} 54. Kf3 {[%clk 0:00:03.1]}
54... Kf5 {[%clk 0:00:38]} 55. g4+ {[%clk 0:00:03.4]} 55... Kf6 {[%clk
0:00:37.2]} 56. Ke4 {[%clk 0:00:04.3]} 56... h6 {[%clk 0:00:36.2]} 57. h3 {[%clk
0:00:05.2]} 57... Ke6 {[%clk 0:00:32.4]} 58. Bd2 {[%clk 0:00:05.4]} 58... Bd4
{[%clk 0:00:32.2]} 59. Bc1 {[%clk 0:00:05.3]} 59... Bf2 {[%clk 0:00:31.4]} 60.
Ba3 {[%clk 0:00:05.2]} 60... Kf6 {[%clk 0:00:31.3]} 61. Bd6 {[%clk 0:00:04.6]}
61... Bd4 {[%clk 0:00:31.2]} 62. Bf8 {[%clk 0:00:04.7]} 62... Kg6 {[%clk
0:00:31.4]} 63. Bd6 {[%clk 0:00:04.9]} 63... h5 {[%clk 0:00:21.7]} 64. Bxe5
{[%clk 0:00:02.5]} 64... Bf2 {[%clk 0:00:21.8]} 65. Bd6 {[%clk 0:00:02.3]} 65...
Bh4 {[%clk 0:00:20.9]} 66. Be5 {[%clk 0:00:01.9]} 66... Be1 {[%clk 0:00:21.4]}
67. Bd4 {[%clk 0:00:02.3]} 67... Bd2 {[%clk 0:00:21.4]} 68. Bf2 {[%clk
0:00:02.5]} 68... Bf4 {[%clk 0:00:21.4]} 69. Bd4 {[%clk 0:00:02.7]} 69... hxg4
{[%clk 0:00:21.5]} 70. hxg4 {[%clk 0:00:02.7]} 70... Bg3 {[%clk 0:00:22.1]} 71.
Kd5 {[%clk 0:00:03]} 71... Bf4 {[%clk 0:00:21.2]} 72. Ke6 {[%clk 0:00:03.9]}
72... Bd2 {[%clk 0:00:20.8]} 73. Be5 {[%clk 0:00:04.4]} 73... Bf4 {[%clk
0:00:20.4]} 74. Bd4 {[%clk 0:00:04.2]} 74... Bd2 {[%clk 0:00:19.9]} 75. Be5
{[%clk 0:00:04.6]} 75... Bf4 {[%clk 0:00:20]} 76. Bd4 {[%clk 0:00:05]} 1/2-1/2

[Event "Early-Titled-Tuesday-Blitz-June-18-2024"]
[Site "Chess.com"]
[Date "2024.06.18"]
[Round "3"]
[White "jaskol95"]
[Black "GambitGiesbergen"]
[Result "1/2-1/2"]
[WhiteElo "2604"]
[BlackElo "2373"]
[TimeControl "180+1"]
[EndTime "8:31:38 PDT"]
[Termination "Game drawn by stalemate"]

1. e4 {[%clk 0:03:00.9]} 1... c5 {[%clk 0:02:58.7]} 2. Nf3 {[%clk 0:02:58]} 2...
d6 {[%clk 0:02:59.2]} 3. Bb5+ {[%clk 0:02:57.6]} 3... Nd7 {[%clk 0:02:57.7]} 4.
a4 {[%clk 0:02:58.2]} 4... Nf6 {[%clk 0:02:55.7]} 5. Nc3 {[%clk 0:02:58.2]} 5...
a6 {[%clk 0:02:50]} 6. Bc4 {[%clk 0:02:58.3]} 6... e6 {[%clk 0:02:49.6]} 7. d4
{[%clk 0:02:58.7]} 7... cxd4 {[%clk 0:02:46.9]} 8. Nxd4 {[%clk 0:02:59.6]} 8...
Be7 {[%clk 0:02:46.4]} 9. Bxe6 {[%clk 0:02:59.9]} 9... fxe6 {[%clk 0:02:39.7]}
10. Nxe6 {[%clk 0:03:00.8]} 10... Qa5 {[%clk 0:02:27.2]} 11. Nxg7+ {[%clk
0:02:42]} 11... Kf7 {[%clk 0:02:23]} 12. Nf5 {[%clk 0:02:42.6]} 12... Ne5 {[%clk
0:02:02.3]} 13. Nxe7 {[%clk 0:02:09.8]} 13... Kxe7 {[%clk 0:02:00.4]} 14. O-O
{[%clk 0:02:10.2]} 14... Rg8 {[%clk 0:01:37.3]} 15. f4 {[%clk 0:01:53.4]} 15...
Neg4 {[%clk 0:01:11.9]} 16. Qd4 {[%clk 0:01:21.7]} 16... Nxh2 {[%clk 0:00:38.3]}
17. e5 {[%clk 0:00:48.9]} 17... Nxf1 {[%clk 0:00:07.4]} 18. Qxd6+ {[%clk
0:00:43.1]} 18... Ke8 {[%clk 0:00:05.8]} 19. exf6 {[%clk 0:00:34.4]} 19... Qd8
{[%clk 0:00:02]} 20. f7+ {[%clk 0:00:34.7]} 20... Kxf7 {[%clk 0:00:01.7]} 21.
Qxd8 {[%clk 0:00:19.3]} 21... Rxd8 {[%clk 0:00:02.6]} 22. Kxf1 {[%clk
0:00:19.9]} 22... Bf5 {[%clk 0:00:02.6]} 23. Be3 {[%clk 0:00:19.2]} 23... Bxc2
{[%clk 0:00:02.1]} 24. Kf2 {[%clk 0:00:18.1]} 24... Bd3 {[%clk 0:00:03]} 25. Rh1
{[%clk 0:00:17.8]} 25... Rd7 {[%clk 0:00:02.4]} 26. g4 {[%clk 0:00:16.9]} 26...
Rg8 {[%clk 0:00:02.7]} 27. Kf3 {[%clk 0:00:14.9]} 27... Ke8 {[%clk 0:00:01.3]}
28. f5 {[%clk 0:00:12.4]} 28... Bc4 {[%clk 0:00:01.9]} 29. Kf4 {[%clk 0:00:09]}
29... Bd5 {[%clk 0:00:02.4]} 30. Rd1 {[%clk 0:00:08.4]} 30... Bc6 {[%clk
0:00:02.4]} 31. Re1 {[%clk 0:00:08.7]} 31... Re7 {[%clk 0:00:01.9]} 32. f6
{[%clk 0:00:05.9]} 32... Rf7 {[%clk 0:00:01.6]} 33. Kf5 {[%clk 0:00:03.6]} 33...
Bd7+ {[%clk 0:00:01.4]} 34. Ke5 {[%clk 0:00:03.4]} 34... Rxg4 {[%clk 0:00:02.1]}
35. Nd5 {[%clk 0:00:03.2]} 35... Kf8 {[%clk 0:00:02.3]} 36. Bh6+ {[%clk
0:00:02]} 36... Kg8 {[%clk 0:00:02.4]} 37. Ne7+ {[%clk 0:00:02.7]} 37... Kh8
{[%clk 0:00:02.5]} 38. Kd6 {[%clk 0:00:03.2]} 38... Rxf6+ {[%clk 0:00:01.8]} 39.
Kxd7 {[%clk 0:00:03.8]} 39... Rxh6 {[%clk 0:00:02.1]} 40. Nf5 {[%clk 0:00:03.6]}
40... Rf6 {[%clk 0:00:02.2]} 41. Re5 {[%clk 0:00:03]} 41... Rg8 {[%clk
0:00:03.1]} 42. Ke7 {[%clk 0:00:03.1]} 42... Rfg6 {[%clk 0:00:02.9]} 43. Nd6
{[%clk 0:00:03.1]} 43... R8g7+ {[%clk 0:00:02.3]} 44. Kd8 {[%clk 0:00:03.3]}
44... Rxd6+ {[%clk 0:00:02.9]} 45. Kc8 {[%clk 0:00:03.6]} 45... Rf6 {[%clk
0:00:03.4]} 46. Kb8 {[%clk 0:00:03.6]} 46... Rf8+ {[%clk 0:00:03.1]} 47. Ka7
{[%clk 0:00:04.3]} 47... b5+ {[%clk 0:00:03.9]} 48. Kxa6 {[%clk 0:00:04.9]}
48... bxa4 {[%clk 0:00:04.5]} 49. Ka5 {[%clk 0:00:05.1]} 49... h6 {[%clk
0:00:04.6]} 50. Kxa4 {[%clk 0:00:05]} 50... Rf4+ {[%clk 0:00:05.3]} 51. Kb3
{[%clk 0:00:05.2]} 51... Rg3+ {[%clk 0:00:05.6]} 52. Ka2 {[%clk 0:00:05.5]}
52... Rf2 {[%clk 0:00:06.2]} 53. Rh5 {[%clk 0:00:05.7]} 53... Kg7 {[%clk
0:00:06.2]} 54. Rb5 {[%clk 0:00:05.2]} 54... Rgg2 {[%clk 0:00:05.8]} 55. Ka1
{[%clk 0:00:05.8]} 55... Rxb2 {[%clk 0:00:05.7]} 56. Rb7+ {[%clk 0:00:04.9]}
56... Kf6 {[%clk 0:00:01.8]} 57. Rf7+ {[%clk 0:00:05]} 57... Ke5 {[%clk
0:00:02.3]} 58. Rf5+ {[%clk 0:00:05.3]} 58... Ke4 {[%clk 0:00:02.4]} 59. Rf4+
{[%clk 0:00:05.6]} 59... Kd3 {[%clk 0:00:02.7]} 60. Rf3+ {[%clk 0:00:05.9]}
60... Ke2 {[%clk 0:00:02.5]} 61. Re3+ {[%clk 0:00:05.7]} 61... Kd1 {[%clk
0:00:02.5]} 62. Re1+ {[%clk 0:00:05.6]} 62... Kd2 {[%clk 0:00:03.2]} 63. Rd1+
{[%clk 0:00:04.5]} 63... Ke2 {[%clk 0:00:03.8]} 64. Re1+ {[%clk 0:00:03.7]}
64... Kf2 {[%clk 0:00:04.1]} 65. Rf1+ {[%clk 0:00:03.6]} 65... Kg3 {[%clk
0:00:04.5]} 66. Rf3+ {[%clk 0:00:04]} 66... Kh2 {[%clk 0:00:04.8]} 67. Rh3+
{[%clk 0:00:04.5]} 67... Kg1 {[%clk 0:00:05.2]} 68. Rh1+ {[%clk 0:00:05]} 68...
Kf2 {[%clk 0:00:05.8]} 69. Kxb2 {[%clk 0:00:05.5]} 69... Rg6 {[%clk 0:00:02.1]}
70. Kc3 {[%clk 0:00:04.8]} 70... Kg2 {[%clk 0:00:02.7]} 71. Rh5 {[%clk
0:00:04.7]} 71... Kg3 {[%clk 0:00:02.7]} 72. Kd4 {[%clk 0:00:05.3]} 72... Kg4
{[%clk 0:00:03.3]} 73. Rh1 {[%clk 0:00:05.4]} 73... h5 {[%clk 0:00:03.5]} 74.
Ke4 {[%clk 0:00:05.8]} 74... Rf6 {[%clk 0:00:03.6]} 75. Rg1+ {[%clk 0:00:05.1]}
75... Kh4 {[%clk 0:00:04.2]} 76. Rh1+ {[%clk 0:00:05.5]} 76... Kg4 {[%clk
0:00:04.9]} 77. Ke3 {[%clk 0:00:05.2]} 77... h4 {[%clk 0:00:04.4]} 78. Rg1+
{[%clk 0:00:05.4]} 78... Kh3 {[%clk 0:00:04.6]} 79. Ke2 {[%clk 0:00:05.5]} 79...
Kh2 {[%clk 0:00:04.4]} 80. Rg8 {[%clk 0:00:04.3]} 80... h3 {[%clk 0:00:05]} 81.
Rg7 {[%clk 0:00:04.3]} 81... Kh1 {[%clk 0:00:05.3]} 82. Ke1 {[%clk 0:00:04.6]}
82... h2 {[%clk 0:00:05.7]} 83. Ke2 {[%clk 0:00:05]} 83... Rf8 {[%clk
0:00:05.5]} 84. Ke1 {[%clk 0:00:05.4]} 84... Rf6 {[%clk 0:00:05.8]} 85. Ke2
{[%clk 0:00:05.9]} 85... Rf4 {[%clk 0:00:05.9]} 86. Rg6 {[%clk 0:00:06.3]} 86...
Rf5 {[%clk 0:00:05.8]} 87. Rg4 {[%clk 0:00:06.4]} 87... Rf1 {[%clk 0:00:05.7]}
88. Kxf1 {[%clk 0:00:05.3]} 1/2-1/2

[Event "Early-Titled-Tuesday-Blitz-June-18-2024"]
[Site "Chess.com"]
[Date "2024.06.18"]
[Round "3"]
[White "PeshkaCh"]
[Black "karinachess1"]
[Result "0-1"]
[WhiteElo "2857"]
[BlackElo "2665"]
[TimeControl "180+1"]
[EndTime "8:31:39 PDT"]
[Termination "karinachess1 won by checkmate"]

1. Nf3 {[%clk 0:03:00.9]} 1... Nf6 {[%clk 0:02:59.8]} 2. d4 {[%clk 0:03:00.3]}
2... e6 {[%clk 0:02:58.7]} 3. c4 {[%clk 0:03:00.1]} 3... d5 {[%clk 0:02:59.1]}
4. Nc3 {[%clk 0:02:59.7]} 4... Bb4 {[%clk 0:02:59]} 5. Bg5 {[%clk 0:02:59.7]}
5... h6 {[%clk 0:02:58.9]} 6. Bxf6 {[%clk 0:02:59]} 6... Qxf6 {[%clk 0:02:59.3]}
7. Qa4+ {[%clk 0:02:59.9]} 7... Nc6 {[%clk 0:02:59.4]} 8. cxd5 {[%clk
0:03:00.6]} 8... exd5 {[%clk 0:03:00.3]} 9. e3 {[%clk 0:03:01.3]} 9... Be6
{[%clk 0:02:59.2]} 10. Be2 {[%clk 0:03:01.7]} 10... O-O {[%clk 0:02:59.2]} 11.
O-O {[%clk 0:03:02.3]} 11... Bd6 {[%clk 0:02:58.3]} 12. Qc2 {[%clk 0:02:56.2]}
12... a6 {[%clk 0:02:55.8]} 13. Rad1 {[%clk 0:02:51]} 13... Ne7 {[%clk 0:02:56]}
14. e4 {[%clk 0:02:51.2]} 14... dxe4 {[%clk 0:02:37.9]} 15. Nxe4 {[%clk
0:02:52.1]} 15... Qf5 {[%clk 0:02:12.3]} 16. Bd3 {[%clk 0:02:43.2]} 16... Qd5
{[%clk 0:02:12.4]} 17. b3 {[%clk 0:02:38.2]} 17... Rac8 {[%clk 0:01:30.3]} 18.
Rfe1 {[%clk 0:02:24.9]} 18... Bb4 {[%clk 0:01:15.1]} 19. Bc4 {[%clk 0:02:05.5]}
19... Qf5 {[%clk 0:01:15.3]} 20. Re2 {[%clk 0:01:26.1]} 20... Nd5 {[%clk
0:01:03.8]} 21. Ne5 {[%clk 0:01:24.8]} 21... Rfd8 {[%clk 0:00:52.2]} 22. Nd3
{[%clk 0:01:04.5]} 22... Bf8 {[%clk 0:00:41.3]} 23. Ndc5 {[%clk 0:00:43.8]}
23... Nf4 {[%clk 0:00:35.9]} 24. Red2 {[%clk 0:00:26.9]} 24... Bxc4 {[%clk
0:00:34.1]} 25. bxc4 {[%clk 0:00:20.8]} 25... b6 {[%clk 0:00:29.9]} 26. Nb3
{[%clk 0:00:20.4]} 26... Bb4 {[%clk 0:00:28.7]} 27. Ng3 {[%clk 0:00:12.3]} 27...
Qg5 {[%clk 0:00:23.4]} 28. d5 {[%clk 0:00:09.4]} 28... Bxd2 {[%clk 0:00:18.9]}
29. Qxd2 {[%clk 0:00:10.3]} 29... Re8 {[%clk 0:00:13.9]} 30. Nd4 {[%clk
0:00:10.2]} 30... Rcd8 {[%clk 0:00:11.8]} 31. h3 {[%clk 0:00:07.6]} 31... h5
{[%clk 0:00:11.9]} 32. Nf3 {[%clk 0:00:04.4]} 32... Qh6 {[%clk 0:00:10.6]} 33.
h4 {[%clk 0:00:04.2]} 33... Rd6 {[%clk 0:00:09.5]} 34. Nf5 {[%clk 0:00:03.2]}
34... Ne2+ {[%clk 0:00:07.4]} 35. Kh2 {[%clk 0:00:03.5]} 35... Qxd2 {[%clk
0:00:07.7]} 36. Rxd2 {[%clk 0:00:04.4]} 36... Rdd8 {[%clk 0:00:08]} 37. g3
{[%clk 0:00:03.1]} 37... Nc3 {[%clk 0:00:08.1]} 38. N3d4 {[%clk 0:00:03.4]}
38... Ne4 {[%clk 0:00:08.4]} 39. Re2 {[%clk 0:00:03.3]} 39... Nd6 {[%clk
0:00:09]} 40. Ne7+ {[%clk 0:00:03.5]} 40... Kh8 {[%clk 0:00:07.3]} 41. Ndc6
{[%clk 0:00:03.7]} 41... Ra8 {[%clk 0:00:06.8]} 42. Re5 {[%clk 0:00:01.7]} 42...
g6 {[%clk 0:00:06.3]} 43. Re2 {[%clk 0:00:02]} 43... Nxc4 {[%clk 0:00:06.6]} 44.
f4 {[%clk 0:00:02.7]} 44... Nd6 {[%clk 0:00:06.9]} 45. Rc2 {[%clk 0:00:02.9]}
45... b5 {[%clk 0:00:04.7]} 46. f5 {[%clk 0:00:03.1]} 46... Nxf5 {[%clk
0:00:04.6]} 47. Nxf5 {[%clk 0:00:03.5]} 47... gxf5 {[%clk 0:00:05.5]} 48. Nd4
{[%clk 0:00:04.2]} 48... Rac8 {[%clk 0:00:05.2]} 49. Nxf5 {[%clk 0:00:04.4]}
49... Re5 {[%clk 0:00:05.1]} 50. Nd6 {[%clk 0:00:04.5]} 50... Rf8 {[%clk
0:00:05.1]} 51. Rxc7 {[%clk 0:00:04]} 51... Rxd5 {[%clk 0:00:05.7]} 52. Nxf7+
{[%clk 0:00:04.7]} 52... Kg7 {[%clk 0:00:05.4]} 53. Ng5+ {[%clk 0:00:04.9]}
53... Kg6 {[%clk 0:00:05.5]} 54. Rc6+ {[%clk 0:00:04.9]} 54... Rf6 {[%clk
0:00:05.9]} 55. Rc2 {[%clk 0:00:04.6]} 55... Rfd6 {[%clk 0:00:05.5]} 56. Nf3
{[%clk 0:00:04]} 56... Kg7 {[%clk 0:00:04]} 57. Kg2 {[%clk 0:00:03.7]} 57... Rd7
{[%clk 0:00:04.2]} 58. Rc6 {[%clk 0:00:03.6]} 58... R7d6 {[%clk 0:00:04.7]} 59.
Rc7+ {[%clk 0:00:04]} 59... Rd7 {[%clk 0:00:05.3]} 60. Rc6 {[%clk 0:00:04.1]}
60... a5 {[%clk 0:00:05.4]} 61. Ra6 {[%clk 0:00:03.3]} 61... a4 {[%clk
0:00:05.9]} 62. Rb6 {[%clk 0:00:03.4]} 62... Rc5 {[%clk 0:00:05]} 63. Ng5 {[%clk
0:00:03.1]} 63... Rc2+ {[%clk 0:00:05.4]} 64. Kf3 {[%clk 0:00:03.4]} 64... Rxa2
{[%clk 0:00:05.8]} 65. Rxb5 {[%clk 0:00:03.5]} 65... a3 {[%clk 0:00:06]} 66.
Ne6+ {[%clk 0:00:04]} 66... Kf7 {[%clk 0:00:06]} 67. Nf4 {[%clk 0:00:04.2]}
67... Ra1 {[%clk 0:00:05.1]} 68. Rxh5 {[%clk 0:00:04.3]} 68... a2 {[%clk
0:00:05.5]} 69. Rh7+ {[%clk 0:00:05]} 69... Ke8 {[%clk 0:00:05.2]} 70. Rh8+
{[%clk 0:00:05.3]} 70... Ke7 {[%clk 0:00:05.8]} 71. Rh7+ {[%clk 0:00:03.2]}
71... Kd6 {[%clk 0:00:05.6]} 72. Rh6+ {[%clk 0:00:03.9]} 72... Kc7 {[%clk
0:00:06.1]} 73. Ne6+ {[%clk 0:00:03.1]} 73... Kb8 {[%clk 0:00:05.6]} 74. Rh8+
{[%clk 0:00:01.4]} 74... Ka7 {[%clk 0:00:06]} 75. Nc5 {[%clk 0:00:01.6]} 75...
Rf7+ {[%clk 0:00:06.3]} 76. Kg4 {[%clk 0:00:01.8]} 76... Rb1 {[%clk 0:00:06.8]}
77. Rh6 {[%clk 0:00:01]} 77... a1=Q {[%clk 0:00:06.6]} 78. Ra6+ {[%clk
0:00:01.6]} 78... Qxa6 {[%clk 0:00:06.9]} 79. Nxa6 {[%clk 0:00:02.5]} 79... Kxa6
{[%clk 0:00:07.8]} 80. Kg5 {[%clk 0:00:02]} 80... Rb5+ {[%clk 0:00:08.2]} 81.
Kg6 {[%clk 0:00:02.4]} 81... Rf3 {[%clk 0:00:08.6]} 82. g4 {[%clk 0:00:03]}
82... Rh3 {[%clk 0:00:08]} 83. h5 {[%clk 0:00:03.3]} 83... Rg3 {[%clk
0:00:08.6]} 84. h6 {[%clk 0:00:02.5]} 84... Rxg4+ {[%clk 0:00:08.6]} 85. Kh7
{[%clk 0:00:03.2]} 85... Rb7+ {[%clk 0:00:08.9]} 86. Kh8 {[%clk 0:00:03.8]}
86... Rb8+ {[%clk 0:00:08.8]} 87. Kh7 {[%clk 0:00:03.9]} 87... Rb6 {[%clk
0:00:08.9]} 88. Kh8 {[%clk 0:00:04]} 88... Rxh6# {[%clk 0:00:09.5]} 0-1